{"text_format":"3","workbook":"xlsx","n_sheets":1,"sheets":["Posudba knjiga iz knjižnice"],"not_rendered":{"defined_names":4},"read":"whole","date_system":"1900"}

{"sheet":"Posudba knjiga iz knjižnice","index":0,"n_rows":9,"n_cols":8,"rows_kept":9,"merged":[[0,1,0,4],[0,5,0,6]]}
[null,"List za praćenje posudbe knjiga u knjižnici",{"$nulls":3},"BROJ DANA DO ISTEKA ROKA: ",null,10]
["Prekoračen rok","UČENIK","ADRESA E-POŠTE ZA KONTAKT","TELEFONSKI BROJ ZA KONTAKT","NASLOV KNJIGE","DATUM POSUDBE","DATUM VRAĆANJA","DANI"]
[{"$f":"IFERROR(((Knjige[[#This Row],[DATUM POSUDBE]]+DnevnaKvota)<TODAY())*(LEN(Knjige[[#This Row],[DATUM VRAĆANJA]])=0)*(LEN(Knjige[[#This Row],[DATUM POSUDBE]])>0),0)","v":0},"Zorica Crnić","netko@example.com","555-0100","Mala kuća u preriji",{"$f":"DATE(YEAR(TODAY()),1,14)","v":"2018-01-14"},{"$f":"DATE(YEAR(TODAY()),1,21)","v":"2018-01-21"},{"$f":"IFERROR(IF(Knjige[[#This Row],[DATUM VRAĆANJA]]=\"\",IF(Knjige[[#This Row],[DATUM POSUDBE]]<>\"\", TODAY()-Knjige[[#This Row],[DATUM POSUDBE]],\"\"),Knjige[[#This Row],[DATUM VRAĆANJA]]-Knjige[[#This Row],[DATUM POSUDBE]]), \"\")","v":7}]
[{"$f":"IFERROR(((Knjige[[#This Row],[DATUM POSUDBE]]+DnevnaKvota)<TODAY())*(LEN(Knjige[[#This Row],[DATUM VRAĆANJA]])=0)*(LEN(Knjige[[#This Row],[DATUM POSUDBE]])>0),0)","v":0},"Vjekoslav Vlašić","netko@example.com","555-0101","Charlotteina mreža",{"$f":"DATE(YEAR(TODAY()),2,15)","v":"2018-02-15"},{"$f":"DATE(YEAR(TODAY()),2,18)","v":"2018-02-18"},{"$f":"IFERROR(IF(Knjige[[#This Row],[DATUM VRAĆANJA]]=\"\",IF(Knjige[[#This Row],[DATUM POSUDBE]]<>\"\", TODAY()-Knjige[[#This Row],[DATUM POSUDBE]],\"\"),Knjige[[#This Row],[DATUM VRAĆANJA]]-Knjige[[#This Row],[DATUM POSUDBE]]), \"\")","v":3}]
[{"$f":"IFERROR(((Knjige[[#This Row],[DATUM POSUDBE]]+DnevnaKvota)<TODAY())*(LEN(Knjige[[#This Row],[DATUM VRAĆANJA]])=0)*(LEN(Knjige[[#This Row],[DATUM POSUDBE]])>0),0)","v":0},"Jadranko Lukić","netko@example.com","555-0102","Fantomska kućica",{"$f":"DATE(YEAR(TODAY()),2,17)","v":"2018-02-17"},{"$f":"DATE(YEAR(TODAY()),2,22)","v":"2018-02-22"},{"$f":"IFERROR(IF(Knjige[[#This Row],[DATUM VRAĆANJA]]=\"\",IF(Knjige[[#This Row],[DATUM POSUDBE]]<>\"\", TODAY()-Knjige[[#This Row],[DATUM POSUDBE]],\"\"),Knjige[[#This Row],[DATUM VRAĆANJA]]-Knjige[[#This Row],[DATUM POSUDBE]]), \"\")","v":5}]
[{"$f":"IFERROR(((Knjige[[#This Row],[DATUM POSUDBE]]+DnevnaKvota)<TODAY())*(LEN(Knjige[[#This Row],[DATUM VRAĆANJA]])=0)*(LEN(Knjige[[#This Row],[DATUM POSUDBE]])>0),0)","v":0},"Teo Perić","netko@example.com","555-0103","Mrs. Frisby and the Rats of Nimh",{"$f":"DATE(YEAR(TODAY()),2,17)","v":"2018-02-17"},{"$f":"DATE(YEAR(TODAY()),2,25)","v":"2018-02-25"},{"$f":"IFERROR(IF(Knjige[[#This Row],[DATUM VRAĆANJA]]=\"\",IF(Knjige[[#This Row],[DATUM POSUDBE]]<>\"\", TODAY()-Knjige[[#This Row],[DATUM POSUDBE]],\"\"),Knjige[[#This Row],[DATUM VRAĆANJA]]-Knjige[[#This Row],[DATUM POSUDBE]]), \"\")","v":8}]
[{"$f":"IFERROR(((Knjige[[#This Row],[DATUM POSUDBE]]+DnevnaKvota)<TODAY())*(LEN(Knjige[[#This Row],[DATUM VRAĆANJA]])=0)*(LEN(Knjige[[#This Row],[DATUM POSUDBE]])>0),0)","v":0},"Lucija Galić","netko@example.com","555-0104","Matilda",{"$f":"DATE(YEAR(TODAY()),2,18)","v":"2018-02-18"},{"$f":"DATE(YEAR(TODAY()),2,28)","v":"2018-02-28"},{"$f":"IFERROR(IF(Knjige[[#This Row],[DATUM VRAĆANJA]]=\"\",IF(Knjige[[#This Row],[DATUM POSUDBE]]<>\"\", TODAY()-Knjige[[#This Row],[DATUM POSUDBE]],\"\"),Knjige[[#This Row],[DATUM VRAĆANJA]]-Knjige[[#This Row],[DATUM POSUDBE]]), \"\")","v":10}]
[{"$f":"IFERROR(((Knjige[[#This Row],[DATUM POSUDBE]]+DnevnaKvota)<TODAY())*(LEN(Knjige[[#This Row],[DATUM VRAĆANJA]])=0)*(LEN(Knjige[[#This Row],[DATUM POSUDBE]])>0),0)","v":1},"Marica Jurić","netko@example.com","555-0105","Narnijske kronike",{"$f":"DATE(YEAR(TODAY()),1,23)","v":"2018-01-23"},null,{"$f":"IFERROR(IF(Knjige[[#This Row],[DATUM VRAĆANJA]]=\"\",IF(Knjige[[#This Row],[DATUM POSUDBE]]<>\"\", TODAY()-Knjige[[#This Row],[DATUM POSUDBE]],\"\"),Knjige[[#This Row],[DATUM VRAĆANJA]]-Knjige[[#This Row],[DATUM POSUDBE]]), \"\")","v":164}]
[{"$f":"IFERROR(((Knjige[[#This Row],[DATUM POSUDBE]]+DnevnaKvota)<TODAY())*(LEN(Knjige[[#This Row],[DATUM VRAĆANJA]])=0)*(LEN(Knjige[[#This Row],[DATUM POSUDBE]])>0),0)","v":0},"Franka Jurković","netko@example.com","555-0106","The Witch of Blackbird Pond",{"$f":"TODAY()","v":"2018-07-06"},null,{"$f":"IFERROR(IF(Knjige[[#This Row],[DATUM VRAĆANJA]]=\"\",IF(Knjige[[#This Row],[DATUM POSUDBE]]<>\"\", TODAY()-Knjige[[#This Row],[DATUM POSUDBE]],\"\"),Knjige[[#This Row],[DATUM VRAĆANJA]]-Knjige[[#This Row],[DATUM POSUDBE]]), \"\")","v":0}]